fUST/lending_fUST_20250428
["ID","MTS","AMOUNT","RATE_DAILY","PERIOD"]
[359185975,1745787041732,-247.272839,0.00017934,2]
[359185976,1745787041741,-247.272839,0.00017934,2]
[359185977,1745787041751,-151.0,0.00017934,2]
[359185978,1745787041761,-359.94,0.00017996,3]
[359185979,1745787041770,-271.4,0.00018,2]
[359185980,1745787041779,-151.0,0.00018,2]
[359185981,1745787041788,-150.0,0.00018022,2]
[359185982,1745787041797,-151.0,0.00018022,2]
[359185983,1745787041807,-1069.14,0.00018082,2]
[359185984,1745787041948,-495.58,0.00018082,2]
[359185985,1745787041957,-400.0,0.00018082,2]
[359185986,1745787041968,-400.0,0.00018082,2]
[359185987,1745787041978,-400.0,0.00018082,2]
[359185988,1745787041987,-1069.14,0.00018356,2]
[359185989,1745787041998,-495.58,0.00018356,2]
[359185990,1745787042008,-400.0,0.00018356,2]
[359185991,1745787042018,-400.0,0.00018356,2]
[359185992,1745787042028,-400.0,0.00018356,2]
[359185993,1745787042037,-1406.25651699,0.00018383,2]
[359185994,1745787042047,-151.0,0.000184,2]
[359185995,1745787042056,-151.0,0.00018585,2]
[359185996,1745787042067,-207.4,0.00018585,2]
[359185997,1745787042077,-1069.14,0.0001863,2]
[359185998,1745787042088,-495.58,0.0001863,2]
[359185999,1745787042098,-400.0,0.0001863,2]
[359186000,1745787042108,-400.0,0.0001863,2]
[359186001,1745787042118,-240.48080866,0.0001863,2]
[359186002,1745787042127,-1541.99894271,0.0001868,2]
[359186003,1745787042137,-840.47993636,0.00018701,2]
[359186004,1745787042147,-385.76142,0.00018705,2]
[359186005,1745787042156,-385.76142,0.00018705,2]
[359186007,1745787042166,-151.0,0.000188,2]
[359186008,1745787042175,-1069.14,0.00018904,2]
[359186009,1745787042185,-495.58,0.00018904,2]
[359186010,1745787042195,-400.0,0.00018904,2]
[359186011,1745787042204,-400.0,0.00018904,2]
[359186012,1745787042214,-151.0,0.00018935,2]
[359186013,1745787042223,-174.9531212,0.00018986,2]
[359186014,1745787042233,-174.9531212,0.00018986,2]
[359186015,1745787042243,-174.9531212,0.00018986,2]
[359186016,1745787042253,-174.9531212,0.00018986,2]
[359186017,1745787042264,-1518.53163039,0.00019,2]
[359186019,1745787042274,-218.10340693,0.00019177,4]
[359186020,1745787042284,-500.0,0.00019178,2]
[359186021,1745787042294,-151.0,0.00019178,2]
[359186023,1745787042304,-151.0,0.00019178,2]
[359186025,1745787042314,-1069.14,0.00019178,2]
[359186026,1745787042323,-151.0,0.00019178,2]
[359186028,1745787042334,-151.0,0.00019178,2]
[359186031,1745787042344,-500.0,0.00019178,2]
[359186033,1745787042354,-151.0,0.00019178,2]
[359186035,1745787042364,-151.0,0.00019178,2]
[359186036,1745787042374,-151.0,0.00019178,2]
[359186037,1745787042383,-285.26904777,0.00019178,2]
[359186040,1745787042393,-151.77642513,0.00019178,2]
[359186042,1745787042402,-151.0,0.00019178,2]
[359186044,1745787042411,-151.0,0.00019178,2]
[359186046,1745787042422,-154.89139649,0.00019178,2]
[359186048,1745787042432,-151.0,0.00019178,2]
[359186050,1745787042441,-500.0,0.00019178,2]
[359186052,1745787042451,-151.0,0.00019178,2]
[359186054,1745787042460,-500.0,0.00019178,2]
[359186056,1745787042470,-500.0,0.00019178,2]
[359186058,1745787042479,-170.18642913,0.00019178,2]
[359186060,1745787042489,-500.0,0.00019178,2]
[359186062,1745787042498,-151.0,0.00019178,2]
[359186064,1745787042508,-151.2488627,0.00019178,2]
[359186066,1745787042518,-154.69051424,0.00019178,2]
[359186068,1745787042528,-151.0,0.00019178,2]
[359186070,1745787042537,-151.0,0.00019178,2]
[359186072,1745787042547,-56.13575777,0.00019178,2]
[359186074,1745787042561,-443.86424223,0.00019178,2]
[359186076,1745787042572,-495.58,0.00019178,2]
[359186078,1745787042581,-400.0,0.00019178,2]
[359186080,1745787042591,-400.0,0.00019178,2]
[359186082,1745787042600,-904.01938,0.00019178,2]
[359186084,1745787042610,-300.0,0.00019178,2]
[359186086,1745787042619,-151.0,0.000192,2]
[359186088,1745787042629,-151.0,0.000192,2]
[359186090,1745787042638,-505.13473768,0.00019205,2]
[359186092,1745787042647,-151.0,0.00019205,2]
[359186093,1745787042657,-151.0,0.00019205,2]
[359186094,1745787042666,-151.0,0.00019205,2]
[359186095,1745787042676,-151.0,0.00019205,2]
[359186096,1745787042686,-500.0,0.00019205,2]
[359186097,1745787042696,-204.91946607,0.00019205,2]
[359186098,1745787042706,-151.0,0.00019205,2]
[359186099,1745787042716,-180.91782627,0.00019205,2]
[359186100,1745787042726,-155.85504059,0.00019205,2]
[359186101,1745787042736,-500.0,0.00019205,2]
[359186102,1745787042746,-151.0,0.00019205,2]
[359186103,1745787042755,-500.0,0.00019205,2]
[359186104,1745787042765,-500.0,0.00019205,2]
[359186105,1745787042775,-500.0,0.00019205,2]
[359186107,1745787042785,-151.0,0.00019205,2]
[359186108,1745787042795,-151.0,0.00019205,2]
[359186109,1745787042804,-500.0,0.00019205,2]
[359186110,1745787042814,-1406.25651699,0.0001921,2]
[359186111,1745787042828,-156.92235842,0.00019233,2]
[359186112,1745787042838,-151.0,0.00019233,2]
[359186114,1745787042848,-198.25544907,0.00019233,2]
[359186116,1745787042858,-151.0,0.00019233,2]
[359186118,1745787042867,-500.0,0.00019233,2]
[359186121,1745787042877,-151.0,0.00019233,2]
[359186124,1745787042886,-500.0,0.00019233,2]
[359186126,1745787042896,-161.28132728,0.00019233,2]
[359186130,1745787042908,-295.60697256,0.00019233,2]
[359186134,1745787042920,-453.0,0.00019233,2]
[359186137,1745787042930,-93.82159539,0.00019233,2]
[359186141,1745787042941,-406.17840461,0.00019233,2]
[359186146,1745787042951,-254.67157051,0.00019233,2]
[359186149,1745787042960,-232.77955801,0.00019233,2]
[359186152,1745787042969,-557.41889607,0.00019233,2]
[359186154,1745787042979,-151.0,0.00019233,2]
[359186156,1745787042988,-247.272839,0.00019233,2]
[359186157,1745787042997,-247.272839,0.00019233,2]
[359186159,1745787043008,-151.0,0.00019233,2]
[359186161,1745787043017,-500.0,0.0001926,2]
[359186163,1745787043027,-248.85621694,0.0001926,2]
[359186164,1745787043039,-500.0,0.0001926,2]
[359186165,1745787043048,-453.0,0.0001926,2]
[359186166,1745787043058,-500.0,0.00019288,2]
[359186167,1745787043069,-500.0,0.00019288,2]
[359186168,1745787043079,-151.0,0.00019288,2]
[359186169,1745787043088,-365.33265513,0.00019315,2]
[359186170,1745787043098,-500.0,0.00019315,2]
[359186171,1745787043107,-618.57580594,0.00019342,2]
[359186172,1745787043116,-1069.14,0.00019452,2]
[359186173,1745787043126,-495.58,0.00019452,2]
[359186174,1745787043135,-400.0,0.00019452,2]
[359186175,1745787043146,-400.0,0.00019452,2]
[359186176,1745787043156,-151.0,0.000195,2]
[359186177,1745787043166,-151.0,0.000196,2]
[359186178,1745787043176,-151.0,0.000196,2]
[359186179,1745787043186,-639.36164406,0.00019628,2]
[359186180,1745787043195,-2208.67939139,0.00019726,2]
[359186181,1745787043205,-1069.14,0.00019726,2]
[359186182,1745787043214,-495.58,0.00019726,2]
[359186183,1745787043224,-283.16961791,0.00019726,2]
[359186197,1745787045804,-490.02,0.00016438,2]
[359186200,1745787045814,-490.02,0.00016712,2]
[359186202,1745787045823,-421.17458701,0.00016986,2]
[359186204,1745787045835,-68.84541299,0.00016986,2]
[359186205,1745787045844,-490.02,0.0001726,2]
[359186208,1745787045854,-490.02,0.00017534,2]
[359186210,1745787045864,-116.83038209,0.00019726,2]
[359186211,1745787045873,-197.64158062,0.00019726,2]
[359186214,1745787045885,-202.35841938,0.00019726,2]
[359186216,1745787045895,-242.45074318,0.00019791,2]
[359186218,1745787045912,-490.02,0.00017808,2]
[359186220,1745787045925,-237.59325682,0.00019791,2]
[359186222,1745787045935,-185.12669749,0.00019791,2]
[359186224,1745787045945,-2000.0,0.000198,2]
[359186226,1745787045955,-151.0,0.000198,2]
[359186228,1745787045965,-489.97581999,0.000198,2]
[359186238,1745787046055,-1052.02312272,0.000198,2]
[359186240,1745787046066,-174.9531212,0.00019808,2]
[359186241,1745787046075,-385.76142,0.00019872,2]
[359186242,1745787046085,-385.76142,0.00019872,2]
[359186243,1745787046095,-501.13609394,0.00019873,2]
[359186244,1745787046105,-564.91823638,0.00019873,2]
[359186245,1745787046116,-500.0,0.00019873,2]
[359186246,1745787046125,-629.0162293,0.00019873,2]
[359186247,1745787046134,-500.0,0.00019873,2]
[359186248,1745787046144,-500.0,0.00019873,2]
[359186249,1745787046154,-500.0,0.00019873,2]
[359186250,1745787046164,-500.57949996,0.00019873,2]
[359186251,1745787046174,-500.0,0.00019873,2]
[359186252,1745787046183,-461.92712851,0.00019873,2]
[359186253,1745787046193,-501.05888784,0.00019873,2]
[359186254,1745787046203,-501.01072024,0.00019873,2]
[359186255,1745787046212,-500.0,0.00019873,2]
[359186256,1745787046221,-500.0,0.00019873,2]
[359186257,1745787046231,-500.0,0.00019873,2]
[359186258,1745787046240,-562.26843574,0.00019873,2]
[359186259,1745787046249,-229.80576126,0.00019873,2]
[359186260,1745787046261,-270.19423874,0.00019873,2]
[359186261,1745787046271,-500.0,0.00019873,2]
[359186262,1745787046281,-500.5915271,0.00019873,2]
[359186263,1745787046290,-500.0,0.00019873,2]
[359186264,1745787046300,-272.2641956,0.00019873,2]
[359186305,1745787472045,-5240.0,0.00013668,2]
[359186307,1745787482352,-309.50089857,0.00013388,2]
[359186390,1745788232020,-300.0,0.00013386,2]
[359186446,1745788232532,-300.0,0.00013386,2]
[359186448,1745788232542,-300.0,0.00013386,2]
[359186450,1745788232551,-1200.0,0.00013386,2]
[359186452,1745788232560,-18906.3281036,0.00013387,2]
[359186454,1745788232570,-150.60190053,0.00013388,2]
[359186456,1745788232579,-500.0,0.00013388,2]
[359186458,1745788232588,-500.0,0.00013388,2]
[359186460,1745788232597,-500.0,0.00013388,2]
[359186462,1745788232607,-499.96,0.00013388,2]
[359186464,1745788232616,-50000.0,0.00013567,2]
[359186466,1745788232625,-500.0,0.00013666,2]
[359186468,1745788232635,-500.0,0.00013666,2]
[359186470,1745788232645,-500.0,0.00013666,2]
[359186472,1745788232654,-500.0,0.00013666,2]
[359186474,1745788232663,-500.0,0.00013666,2]
[359186476,1745788232673,-500.0,0.00013666,2]
[359186478,1745788232682,-500.0,0.00013666,2]
[359186480,1745788232692,-500.0,0.00013666,2]
[359186482,1745788232701,-500.0,0.00013666,2]
[359186484,1745788232710,-500.0,0.00013666,2]
[359186486,1745788232720,-500.0,0.00013666,2]
[359186488,1745788232729,-261.92165755,0.00013666,2]
[359186490,1745788232739,-500.0,0.00013666,2]
[359186492,1745788232748,-500.0,0.00013666,2]
[359186494,1745788232758,-500.0,0.00013666,2]
[359186496,1745788232767,-405.68048784,0.00013666,2]
[359186498,1745788232777,-500.0,0.00013666,2]
[359186500,1745788232787,-500.0,0.00013666,2]
[359186502,1745788232796,-500.0,0.00013666,2]
[359186504,1745788232805,-500.0,0.00013666,2]
[359186506,1745788232815,-500.0,0.00013666,2]
[359186508,1745788232824,-549.90506367,0.00013666,2]
[359186510,1745788232836,-500.0,0.00013666,2]
[359186512,1745788232845,-500.0,0.00013666,2]
[359186514,1745788232854,-500.0,0.00013666,2]
[359186516,1745788232864,-499.99999999,0.00013666,2]
[359186518,1745788232874,-2592.63409372,0.00013668,2]
[359186621,1745788238037,-1951.35787678,0.00013668,2]
[359186623,1745788238049,-201.64380775,0.00013698,2]
[359186626,1745788238065,-36.29673628,0.00013698,2]
[359186628,1745788238076,-500.0,0.00013698,2]
[359186630,1745788238088,-287.17159201,0.00013698,2]
[359186632,1745788238099,-345.293663,0.00013699,2]
[359186635,1745788238112,-500.0,0.00014373,2]
[359186637,1745788238123,-420.0,0.00014675,2]
[359186639,1745788238134,-300.0,0.00014675,2]
[359186641,1745788238145,-284.0,0.00014675,2]
[359186643,1745788238155,-51.70421839,0.00014725,2]
[359186646,1745788238170,-1148.29578161,0.00014725,2]
[359186648,1745788238182,-234.8226608,0.00014885,2]
[359186650,1745788238193,-616.88155759,0.00014885,2]
[359186652,1745788238206,-3956.33206841,0.00014885,2]
[359186655,1745788238218,-160.0,0.00015,2]
[359186657,1745788238230,-500.0,0.0001546,2]
[359186659,1745788238242,-530.92315292,0.0001546,2]
[359186662,1745788238254,-1171.88043097,0.000156,2]
[359186664,1745788238266,-48.8251504,0.00015619,2]
[359186666,1745788238279,-451.1748496,0.00015619,2]
[359186668,1745788238289,-568.01560573,0.00015619,2]
[359186670,1745788238299,-500.0,0.00015619,2]
[359186672,1745788238309,-114.09517965,0.00015762,2]
[359186675,1745788238323,-1009.13986329,0.00015762,2]
[359186677,1745788238336,-48.64538788,0.00015762,2]
[359186679,1745788238347,-462.45057384,0.00015814,2]
[359186682,1745788238361,-37.54942616,0.00015814,2]
[359186684,1745788238372,-500.0,0.00015814,2]
[359186686,1745788238383,-57.43462278,0.00015814,2]
[359186725,1745788242931,-388.84,0.00015814,2]
[359186726,1745788242946,-53.72537722,0.00015814,2]
[359186727,1745788242957,-209.68783641,0.00015814,2]
[359186728,1745788242985,-290.31216359,0.00015814,2]
[359186729,1745788242997,-500.0,0.00015814,2]
[359186730,1745788243007,-500.0,0.00015814,2]
[359186731,1745788243018,-500.0,0.00015814,2]
[359186732,1745788243028,-500.0,0.00015814,2]
[359186733,1745788243039,-500.0,0.00015814,2]
[359186735,1745788243050,-500.0,0.0001586,2]
[359186737,1745788243060,-587.0,0.00016087,2]
[359186738,1745788243071,-197.4600555,0.00016164,2]
[359186739,1745788243081,-160.0,0.00016437,2]
[359186740,1745788243092,-500.0,0.00016438,2]
[359186741,1745788243103,-500.0,0.00016438,2]
[359186742,1745788243114,-500.0,0.00016438,2]
[359186743,1745788243125,-500.0,0.00016438,2]
[359186744,1745788243136,-500.0,0.00016438,2]
[359186745,1745788243146,-500.0,0.00016438,2]
[359186746,1745788243157,-500.0,0.00016438,2]
[359186747,1745788243167,-500.0,0.00016438,2]
[359186748,1745788243178,-500.0,0.00016438,2]
[359186749,1745788243189,-500.0,0.00016438,2]
[359186750,1745788243200,-500.0,0.00016438,2]
[359186751,1745788243210,-500.0,0.00016438,2]
[359186752,1745788243220,-500.0,0.00016438,2]
[359186753,1745788243231,-500.0,0.00016438,2]
[359186754,1745788243242,-500.0,0.00016438,2]
[359186755,1745788243252,-500.0,0.00016438,2]
[359186756,1745788243263,-500.0,0.00016438,2]
[359186757,1745788243274,-500.0,0.00016438,2]
[359186758,1745788243284,-158.24046966,0.00016438,2]
[359186759,1745788243295,-500.0,0.00016438,2]
[359186760,1745788243306,-500.0,0.00016438,2]
[359186761,1745788243316,-519.05085048,0.00016438,2]
[359186762,1745788243327,-400.0,0.00016438,2]
[359186763,1745788243337,-500.0,0.00016438,2]
[359186764,1745788243348,-500.0,0.00016438,2]
[359186765,1745788243358,-500.0,0.00016438,2]
[359186766,1745788243369,-500.91310524,0.00016438,2]
[359186767,1745788243379,-151.0,0.00016438,2]
[359186768,1745788243390,-500.0,0.00016438,2]
[359186769,1745788243400,-400.0,0.00016438,2]
[359186770,1745788243411,-500.0,0.00016438,2]
[359186771,1745788243420,-400.0,0.00016438,2]
[359186772,1745788243430,-400.0,0.00016438,2]
[359186773,1745788243439,-500.0,0.00016438,2]
[359186774,1745788243448,-500.0,0.00016438,2]
[359186775,1745788243458,-500.0,0.00016438,2]
[359186776,1745788243647,-512.35869656,0.00016438,2]
[359186777,1745788243663,-400.0,0.00016438,2]
[359186778,1745788243673,-400.0,0.00016438,2]
[359186779,1745788243682,-506.6163547,0.00016438,2]
[359186780,1745788243692,-500.0,0.00016438,2]
[359186781,1745788243701,-500.0,0.00016438,2]
[359186782,1745788243711,-500.0,0.00016438,2]
[359186783,1745788243721,-400.0,0.00016438,2]
[359186784,1745788243730,-500.0,0.00016438,2]
[359186785,1745788243739,-500.0,0.00016438,2]
[359186786,1745788243749,-502.01569707,0.00016438,2]
[359186787,1745788243759,-500.0,0.00016438,2]
[359186788,1745788243769,-500.0,0.00016438,2]
[359186789,1745788243778,-400.0,0.00016438,2]
[359186790,1745788243787,-500.0,0.00016438,2]
[359186791,1745788243797,-500.0,0.00016438,2]
[359186792,1745788243806,-500.0,0.00016438,2]
[359186793,1745788243816,-500.0,0.00016438,2]
[359186794,1745788243826,-151.0,0.00016438,2]
[359186795,1745788243838,-151.0,0.00016438,2]
[359186796,1745788243847,-400.0,0.00016438,2]
[359186797,1745788243856,-500.0,0.00016438,2]
[359186798,1745788243866,-151.0,0.00016438,2]
[359186799,1745788243876,-500.0,0.00016438,2]
[359186800,1745788243885,-500.0,0.00016438,2]
[359186801,1745788243895,-246.38055547,0.00016438,2]
[359186802,1745788243904,-500.0,0.00016438,2]
[359186803,1745788243915,-500.70918951,0.00016438,2]
[359186804,1745788243924,-500.0,0.00016438,2]
[359186805,1745788243933,-280.01529219,0.00016438,2]
[359186806,1745788243942,-500.0,0.00016438,2]
[359186807,1745788243952,-259.5402522,0.00016438,2]
[359186808,1745788243961,-500.0,0.00016438,2]
[359186809,1745788243971,-500.0,0.00016438,2]
[359186810,1745788243980,-151.0,0.00016438,2]
[359186811,1745788243989,-500.0,0.00016438,2]
[359186812,1745788243999,-151.0,0.00016438,2]
[359186813,1745788244008,-336.83456465,0.00016438,2]
[359186814,1745788244017,-506.13635428,0.00016438,2]
[359186815,1745788244026,-500.0,0.00016438,2]
[359186816,1745788244036,-392.71413309,0.00016438,2]
[359186817,1745788244045,-507.55584208,0.00016438,2]
[359186818,1745788244055,-500.0,0.00016438,2]
[359186819,1745788244063,-500.0,0.00016438,2]
[359186820,1745788244073,-400.0,0.00016438,2]
[359186821,1745788244082,-500.0,0.00016438,2]
[359186822,1745788244091,-500.0,0.00016438,2]
[359186823,1745788244101,-500.0,0.00016438,2]
[359186824,1745788244110,-500.0,0.00016438,2]
[359186825,1745788244119,-509.82837839,0.00016438,2]
[359186826,1745788244128,-500.0,0.00016438,2]
[359186827,1745788244138,-500.0,0.00016438,2]
[359186828,1745788244146,-500.0,0.00016438,2]
[359186829,1745788244155,-500.0,0.00016438,2]
[359186830,1745788244165,-500.0,0.00016438,2]
[359186831,1745788244175,-500.0,0.00016438,2]
[359186832,1745788244184,-502.28942953,0.00016438,2]
[359186833,1745788244193,-500.0,0.00016438,2]
[359186834,1745788244203,-500.0,0.00016438,2]
[359186835,1745788244212,-500.0,0.00016438,2]
[359186836,1745788244221,-500.0,0.00016438,2]
[359186837,1745788244231,-500.0,0.00016438,2]
[359186838,1745788244240,-500.0,0.00016438,2]
[359186839,1745788244250,-479.8304134,0.00016438,2]
[359186840,1745788244259,-151.0,0.00016438,2]
[359186841,1745788244269,-500.0,0.00016438,2]
[359186842,1745788244278,-500.0,0.00016438,2]
[359186843,1745788244288,-187.6220699,0.00016438,2]
[359186844,1745788244297,-151.0,0.00016438,2]
[359186845,1745788244306,-500.0,0.00016438,2]
[359186846,1745788244316,-500.0,0.00016438,2]
[359186847,1745788244325,-500.0,0.00016438,2]
[359186848,1745788244334,-500.0,0.00016438,2]
[359186849,1745788244344,-500.0,0.00016438,2]
[359186850,1745788244354,-500.0,0.00016438,2]
[359186851,1745788244363,-500.0,0.00016438,2]
[359186852,1745788244373,-500.0,0.00016438,2]
[359186853,1745788244382,-503.42377318,0.00016438,2]
[359186854,1745788244391,-500.0,0.00016438,2]
[359186855,1745788244401,-500.0,0.00016438,2]
[359186856,1745788244411,-151.0,0.00016438,2]
[359186857,1745788244420,-427.87663658,0.00016438,2]
[359186858,1745788244429,-500.0,0.00016438,2]
[359186859,1745788244439,-500.0,0.00016438,2]
[359186860,1745788244448,-500.0,0.00016438,2]
[359186861,1745788244458,-500.0,0.00016438,2]
[359186862,1745788244467,-500.0,0.00016438,2]
[359186863,1745788244477,-500.0,0.00016438,2]
[359186864,1745788244487,-302.79552595,0.00016438,2]
[359186865,1745788244497,-500.0,0.00016438,2]
[359186866,1745788244507,-528.44732593,0.00016438,2]
[359186867,1745788244516,-500.0,0.00016438,2]
[359186868,1745788244526,-502.43793783,0.00016438,2]
[359186869,1745788244536,-500.0,0.00016438,2]
[359186870,1745788244546,-500.0,0.00016438,2]
[359186871,1745788244556,-500.0,0.00016438,2]
[359186872,1745788244566,-500.0,0.00016438,2]
[359186873,1745788244576,-500.0,0.00016438,2]
[359186874,1745788244586,-500.0,0.00016438,2]
[359186875,1745788244596,-500.0,0.00016438,2]
[359186876,1745788244606,-500.0,0.00016438,2]
[359186877,1745788244615,-500.0,0.00016438,2]
[359186878,1745788244625,-500.0,0.00016438,2]
[359186879,1745788244635,-500.0,0.00016438,2]
[359186880,1745788244646,-302.13836539,0.00016438,2]
[359186881,1745788244656,-500.0,0.00016438,2]
[359186882,1745788244665,-500.0,0.00016438,2]
[359186883,1745788244675,-500.0,0.00016438,2]
[359186884,1745788244685,-500.0,0.00016438,2]
[359186885,1745788244695,-280.67684001,0.00016438,2]
[359186886,1745788244704,-500.0,0.00016438,2]
[359186887,1745788244714,-500.0,0.00016438,2]
[359186888,1745788244723,-500.0,0.00016438,2]
[359186889,1745788244733,-500.0,0.00016438,2]
[359186890,1745788244742,-502.55531784,0.00016438,2]
[359186891,1745788244752,-500.0,0.00016438,2]
[359186892,1745788244762,-500.0,0.00016438,2]
[359186893,1745788244771,-500.0,0.00016438,2]
[359186894,1745788244781,-528.21500491,0.00016438,2]
[359186895,1745788244791,-527.12410889,0.00016438,2]
[359186896,1745788244800,-500.0,0.00016438,2]
[359186897,1745788244810,-500.0,0.00016438,2]
[359186898,1745788244820,-500.0,0.00016438,2]
[359186899,1745788244831,-394.98347622,0.00016438,2]
[359186900,1745788244841,-504.82589394,0.00016438,2]
[359186901,1745788244851,-500.0,0.00016438,2]
[359186902,1745788244861,-500.0,0.00016438,2]
[359186903,1745788244870,-500.0,0.00016438,2]
[359186904,1745788244881,-500.0,0.00016438,2]
[359186905,1745788244891,-400.0,0.00016438,2]
[359186906,1745788244900,-500.0,0.00016438,2]
[359186907,1745788244911,-500.0,0.00016438,2]
[359186908,1745788244921,-400.0,0.00016438,2]
[359186909,1745788244930,-500.0,0.00016438,2]
[359186910,1745788244940,-201.78141078,0.00016438,2]
[359186911,1745788244949,-500.0,0.00016438,2]
[359186912,1745788244959,-500.0,0.00016438,2]
[359186913,1745788244969,-500.0,0.00016438,2]
[359186914,1745788244978,-500.0,0.00016438,2]
[359186915,1745788244988,-500.0,0.00016438,2]
[359186916,1745788244998,-500.0,0.00016438,2]
[359186917,1745788245007,-500.0,0.00016438,2]
[359186918,1745788245017,-500.0,0.00016438,2]
[359186919,1745788245026,-500.0,0.00016438,2]
[359186920,1745788245035,-400.0,0.00016438,2]
[359186921,1745788245045,-151.0,0.00016438,2]
[359186922,1745788245054,-151.0,0.00016438,2]
[359186923,1745788245064,-151.0,0.00016438,2]
[359186924,1745788245073,-500.0,0.00016438,2]
[359186925,1745788245083,-500.0,0.00016438,2]
[359186926,1745788245093,-500.0,0.00016438,2]
[359186927,1745788245103,-245.11058447,0.00016438,2]
[359186928,1745788245112,-500.0,0.00016438,2]
[359186929,1745788245122,-500.0,0.00016438,2]
[359186930,1745788245131,-500.0,0.00016438,2]
[359186931,1745788245140,-400.0,0.00016438,2]
[359186932,1745788245150,-500.0,0.00016438,2]
[359186933,1745788245160,-292.39,0.00016438,2]
[359186934,1745788245170,-500.0,0.00016438,2]
[359186935,1745788245179,-400.0,0.00016438,2]
[359186936,1745788245189,-151.0,0.00016438,2]
[359186937,1745788245198,-508.55602999,0.00016438,2]
[359186938,1745788245208,-413.036858,0.00016438,2]
[359186939,1745788245217,-413.036858,0.00016438,2]
[359186940,1745788245227,-413.036858,0.00016438,2]
[359186941,1745788245236,-500.0,0.00016438,2]
[359186942,1745788245246,-151.0,0.00016438,2]
[359186943,1745788245256,-500.0,0.00016438,2]
[359186944,1745788245266,-475.68,0.00016438,2]
[359186945,1745788245276,-413.036858,0.00016438,2]
[359186946,1745788245286,-413.036858,0.00016438,2]
[359186947,1745788245295,-413.036858,0.00016438,2]
[359186948,1745788245305,-500.0,0.00016438,2]
[359186949,1745788245315,-1171.88043082,0.00016624,2]
[359186950,1745788245324,-500.0,0.00016646,2]
[359186951,1745788245334,-157.85615897,0.00016712,2]
[359186952,1745788245343,-206.87635594,0.00016712,2]
[359186953,1745788245352,-400.0,0.00016712,2]
[359186954,1745788245363,-400.0,0.00016712,2]
[359186955,1745788245372,-400.0,0.00016712,2]
[359186956,1745788245382,-400.0,0.00016712,2]
[359186957,1745788245392,-400.0,0.00016712,2]
[359186958,1745788245401,-400.0,0.00016712,2]
[359186959,1745788245410,-400.0,0.00016712,2]
[359186960,1745788245418,-400.0,0.00016712,2]
[359186961,1745788245426,-156.69870642,0.00016712,2]
[359186962,1745788245435,-228.31209317,0.00016712,2]
[359186963,1745788245445,-400.0,0.00016712,2]
[359186964,1745788245454,-400.0,0.00016712,2]
[359186965,1745788245467,-400.0,0.00016712,2]
[359186966,1745788245478,-475.68,0.00016712,2]
[359186967,1745788245488,-151.0,0.00016715,2]
[359186968,1745788245498,-500.0,0.00016741,2]
[359186969,1745788245507,-151.0,0.00016986,2]
[359186970,1745788245517,-305.18232363,0.00016986,2]
[359186971,1745788245527,-201.4991496,0.00016986,2]
[359186972,1745788245536,-400.0,0.00016986,2]
[359186973,1745788245546,-200.0,0.00016986,2]
[359186975,1745788245555,-200.0,0.00016986,2]
[359186977,1745788245564,-200.0,0.00016986,2]